bitfinex/quotes_ETHUSD_20250626
["timestamp","ask_amount","ask_price","bid_price","bid_amount"]
[1750956616279,0.001,2424.2,2424.1,5.46744235]
[1750956616834,0.001,2424.2,2424.1,6.0422]
[1750956617034,0.001,2424.2,2424.1,10.16744235]
[1750956617232,0.001,2424.2,2424.1,6.0422]
[1750956617459,0.001,2424.2,2424.1,9.33715411]
[1750956617764,0.001,2424.2,2424.1,17.93315411]
[1750956617934,0.001,2424.2,2424.1,22.05839646]
[1750956618138,0.001,2424.2,2424.1,32.05839646]
[1750956618365,0.001,2424.2,2424.1,42.67232546]
[1750956618668,0.001,2424.2,2424.1,35.08031546]
[1750956618971,0.001,2424.2,2424.1,34.38491646]
[1750956619479,0.001,2424.2,2424.1,32.05839646]
[1750956621869,0.001,2424.2,2424.1,27.93315411]
[1750956622188,0.001,2424.2,2424.1,23.46239646]
[1750956622387,0.001,2424.2,2424.1,32.05639646]
[1750956626700,0.001,2424.2,2424.1,45.06632546]
[1750956627207,0.001,2424.2,2424.1,42.91409046]
[1750956627379,0.001,2424.2,2424.1,32.05639646]
[1750956629095,0.001,2424.2,2424.1,19.33715411]
[1750956629277,0.001,2424.2,2424.1,27.37915411]
[1750956629481,0.001,2424.2,2424.1,27.92915411]
[1750956631300,0.001,2424.2,2424.1,8.78715411]
[1750956631486,0.001,2424.2,2424.1,14.0842]
[1750956634504,0.001,2424.2,2424.1,14.6342]
[1750956634682,0.001,2424.2,2424.1,23.20165776]
[1750956635571,0.001,2424.2,2424.1,14.0842]
[1750956636200,0.001,2424.2,2424.1,5.4922]
[1750956636407,0.001,2424.2,2424.1,4.7]
[1750956636572,0.001,2424.2,2424.1,6.488]
[1750956637295,0.001,2424.2,2424.1,1.788]
[1750956637671,0.7746,2424.2,2424.1,1.788]
[1750956639600,0.7746,2424.2,2423.9,10.31]
[1750956639768,0.7746,2424.2,2423.7,1.788]
[1750956640420,1.26473924,2424.2,2423.7,1.788]
[1750956641684,0.7746,2424.2,2423.7,1.788]
[1750956646419,1.75174856,2424.2,2423.7,1.788]
[1750956646779,0.7746,2424.2,2423.7,1.788]
[1750956648076,0.001,2424.2,2423.7,11.12875776]
[1750956648276,0.001,2424.2,2423.8,1.52547696]
[1750956648597,0.001,2424.2,2423.9,6.805]
[1750956648790,0.001,2424.2,2424.0,0.7733]
[1750956649313,0.001,2424.2,2423.9,6.805]
[1750956651796,0.001,2424.2,2424.0,1.789]
[1750956651992,0.001,2424.2,2424.0,3.2709477]
[1750956653323,0.001,2424.2,2424.0,1.789]
[1750956658724,0.7616,2424.1,2424.0,1.789]
[1750956658916,0.001,2424.2,2424.0,1.789]
[1750956661095,0.8038,2424.1,2423.4,0.8157]
[1750956661296,0.8038,2424.1,2423.5,1.789]
[1750956661717,0.001,2424.2,2423.5,2.04947]
[1750956665428,0.001,2424.2,2423.5,6.17565813]
[1750956665615,0.001,2424.2,2423.5,2.04947]
[1750956666229,0.001,2424.2,2423.5,6.17572958]
[1750956667011,0.001,2424.2,2423.6,4.7]
[1750956667341,0.001,2424.2,2423.9,4.12557371]
[1750956667641,0.001,2424.2,2424.0,6.487]
[1750956667808,0.001,2424.2,2424.1,0.7821]
[1750956670333,0.001,2424.2,2424.1,7.5851]
[1750956671012,0.001,2424.2,2424.1,8.1351]
[1750956671344,0.001,2424.2,2424.1,11.27933485]
[1750956671747,0.001,2424.2,2424.1,10.49723485]
[1750956672245,0.001,2424.2,2424.1,9.94723485]
[1750956672411,0.001,2424.2,2424.0,6.487]
[1750956672810,0.001,2424.2,2424.0,1.787]
[1750956674747,0.792,2424.2,2424.0,1.787]
[1750956676249,0.792,2424.2,2424.1,6.802]
[1750956676250,0.001,2424.2,2424.1,6.802]
[1750956676559,0.001,2424.2,2424.1,8.1291]
[1750956676720,0.001,2424.2,2424.1,10.00226652]
[1750956677054,0.001,2424.2,2424.1,18.82750887]
[1750956678018,0.001,2424.2,2424.1,14.70226652]
[1750956678440,0.001,2424.2,2424.1,18.82750887]
[1750956678645,0.001,2424.2,2424.1,14.70226652]
[1750956679025,0.001,2424.2,2424.1,18.82750887]
[1750956679226,0.001,2424.2,2424.1,14.70226652]
[1750956679424,0.001,2424.2,2424.1,18.82750887]
[1750956680818,0.001,2424.2,2424.1,14.70226652]
[1750956681043,0.001,2424.2,2424.1,14.15226652]
[1750956681355,0.001,2424.2,2424.1,14.70226652]
[1750956682252,0.001,2424.2,2424.1,18.82750887]
[1750956688477,0.001,2424.2,2424.1,29.13450887]
[1750956689082,0.001,2424.3,2424.2,14.67507218]
[1750956689240,0.001,2424.3,2424.2,36.45328128]
[1750956689440,0.001,2424.3,2424.2,35.88862055]
[1750956690164,0.001,2424.3,2424.2,34.02986055]
[1750956690767,0.001,2424.3,2424.2,33.62996055]
[1750956691570,0.001,2424.3,2424.2,17.30432055]
[1750956691772,0.001,2424.3,2424.2,33.82996055]
[1750956692074,0.001,2424.3,2424.2,25.89032055]
[1750956693579,0.001,2424.3,2424.2,30.59032055]
[1750956693739,0.001,2424.3,2424.2,33.38247055]
[1750956693940,0.001,2424.3,2424.2,28.68247055]
[1750956694241,0.001,2424.3,2424.2,28.43430255]
[1750956694439,0.001,2424.3,2424.2,27.94430255]
[1750956696770,0.001,2424.3,2424.2,25.89032055]
[1750956697177,0.001,2424.3,2424.2,29.84705255]
[1750956697779,0.001,2424.3,2424.2,25.89032055]
[1750956698075,0.001,2424.3,2424.2,17.30432055]
[1750956698276,0.001,2424.3,2424.2,25.88632055]
[1750956700171,0.001,2424.3,2424.2,34.68573255]
[1750956704103,0.001,2424.3,2424.2,25.88632055]
[1750956704260,0.001,2424.3,2424.2,57.04823618]
[1750956704457,0.001,2424.8,2424.7,15.50562155]
[1750956704675,0.001,2424.8,2424.7,37.59205963]
[1750956705498,0.001,2424.8,2424.7,37.79527718]
[1750956706181,0.001,2424.8,2424.7,37.90318946]
[1750956709690,0.001,2424.8,2424.7,37.07178946]
[1750956709985,0.001,2424.8,2424.7,37.86938946]
[1750956712402,0.001,2425.0,2424.9,14.67388139]
[1750956712601,0.001,2425.2,2425.1,14.67354129]
[1750956712948,0.001,2425.3,2425.1,30.84359542]
[1750956713096,0.8225,2425.9,2425.5,12.68231539]
[1750956713430,0.8225,2426.1,2425.6,10.55]
[1750956713728,0.8225,2426.1,2425.8,13.23180551]
[1750956714018,0.7728,2426.4,2426.1,0.55]
[1750956714220,0.7728,2426.4,2426.2,8.577]
[1750956720699,0.7728,2426.4,2426.3,1.784]
[1750956723428,0.4228,2426.4,2426.3,1.784]
[1750956728638,0.001,2426.5,2426.3,1.784]
[1750956728937,0.001,2426.5,2426.4,6.788]
[1750956730238,0.001,2426.5,2426.4,11.45933201]
[1750956732249,0.001,2426.5,2426.4,9.118]
[1750956732933,0.8324,2426.4,2426.3,10.88858389]
[1750956733111,0.8324,2426.4,2426.3,10.298]
[1750956733313,0.8324,2426.4,2426.3,12.079]
[1750956734411,0.8324,2426.4,2426.3,10.298]
[1750956736350,0.8324,2426.4,2425.4,10.299]
[1750956736516,0.8324,2426.4,2425.5,9.5979]
[1750956738450,0.8324,2426.4,2425.6,8.567]
[1750956739652,0.8324,2426.4,2425.6,12.68959263]
[1750956739841,0.8324,2426.4,2425.6,13.44159263]
[1750956740456,0.8324,2426.4,2425.7,0.55]
[1750956740620,0.8324,2426.4,2425.8,1.39915926]
[1750956740816,0.8324,2426.4,2425.9,6.786]
[1750956745650,0.8324,2426.4,2425.6,1.781]
[1750956745651,0.8324,2426.4,2425.5,1.0299]
[1750956745853,0.8324,2426.4,2425.6,1.781]
[1750956749943,0.8324,2426.4,2425.5,6.785]
[1750956749944,0.8324,2426.4,2425.7,1.781]
[1750956750865,0.8029,2426.3,2425.7,1.781]
[1750956751370,0.8029,2426.3,2425.8,1.781]
[1750956752251,0.8029,2426.3,2425.9,1.781]
[1750956752461,0.8029,2426.3,2424.9,1.87316652]
[1750956752462,0.8175,2426.1,2424.9,1.87316652]
[1750956752662,0.8175,2425.9,2424.6,0.002]
[1750956752830,0.8175,2425.9,2425.0,1.781]
[1750956753364,0.823,2425.6,2425.0,1.781]
[1750956754264,0.823,2425.6,2424.7,10.0]
[1750956754560,0.823,2425.6,2424.8,2.7812]
[1750956757754,0.823,2425.6,2424.9,1.778]
[1750956758642,0.7941,2425.3,2424.7,1.78]
[1750956758859,0.7941,2425.1,2424.7,1.78]
[1750956763093,0.7941,2425.1,2424.7,0.002]
[1750956764580,10.7941,2425.1,2424.7,0.002]
[1750956764776,0.7785,2425.0,2424.7,0.002]
[1750956766272,0.6,2424.8,2424.7,0.002]
[1750956766683,1.4008,2424.8,2424.7,0.002]
[1750956769401,2.54088,2424.8,2424.7,0.002]
[1750956770406,2.54088,2424.8,2423.7,1.47146089]
[1750956770407,4.12530153,2424.1,2423.7,0.002]
[1750956770703,10.7687,2423.8,2423.7,0.002]
[1750956771209,14.89445294,2423.8,2423.7,0.002]
[1750956771367,13.79312593,2423.8,2423.7,0.002]
[1750956774509,17.91887887,2423.8,2423.7,0.002]
[1750956774805,19.69787887,2423.8,2423.7,0.002]
[1750956775682,20.24787887,2423.8,2423.7,0.002]
[1750956776282,32.41576664,2423.8,2423.7,0.002]
[1750956777918,33.3885135,2423.8,2423.7,0.002]
[1750956778685,23.88087279,2423.8,2423.7,0.002]
[1750956779203,27.03387887,2423.8,2423.7,0.002]
[1750956779804,27.23730496,2423.8,2423.2,0.002]
[1750956780011,10.0,2423.6,2423.2,0.002]
[1750956780209,6.787,2423.5,2423.2,0.002]
[1750956780507,10.7779,2423.4,2423.2,0.002]
[1750956782104,16.786,2423.3,2423.2,0.002]
[1750956789718,10.0,2423.3,2423.2,0.002]
[1750956790016,6.786,2423.3,2423.2,0.002]
[1750956791408,0.7922,2423.6,2423.2,0.002]
[1750956791597,6.786,2423.5,2423.2,0.002]
[1750956791793,6.786,2423.4,2423.2,0.002]
[1750956792585,0.7922,2423.8,2423.2,0.002]
[1750956792809,10.0,2423.6,2423.2,0.002]
[1750956793010,0.8297,2424.5,2423.4,0.8196]
[1750956793188,0.8297,2424.5,2423.5,0.8196]
[1750956793388,10.0,2424.3,2423.5,0.8196]
[1750956793596,0.97617687,2424.3,2423.5,0.8196]
[1750956793815,6.786,2424.4,2423.5,0.8196]
[1750956794017,6.786,2424.4,2423.6,0.49460296]
[1750956794193,6.786,2424.4,2423.7,0.8207]
[1750956794396,6.786,2424.4,2423.8,1.777]
[1750956795542,0.6,2424.2,2423.8,1.777]
[1750956798833,0.6,2424.2,2423.7,0.8207]
[1750956799019,6.786,2424.4,2423.7,2.5977]
[1750956799220,0.77640344,2424.3,2423.7,2.5977]
[1750956799641,1.52790344,2424.3,2423.7,2.5977]
[1750956800856,0.6,2424.1,2423.7,2.5977]
[1750956803028,0.6,2424.1,2423.7,7.2977]
[1750956804958,0.6,2424.1,2423.8,0.768]
[1750956805171,0.6,2424.1,2423.9,0.7245]
[1750956805459,0.6,2424.1,2424.0,0.768]
[1750956805624,0.6,2424.1,2424.0,5.468]
[1750956805825,0.001,2424.7,2424.0,5.468]
[1750956806057,0.001,2424.7,2424.1,4.7]
[1750956806260,2.2715562,2424.7,2424.1,4.7]
[1750956806430,10.0,2424.6,2424.1,4.7]
[1750956806631,10.97987138,2424.6,2424.1,4.7]
[1750956808364,10.0,2424.6,2424.1,4.7]
[1750956810980,16.781,2424.6,2424.2,0.768]
[1750956811269,0.6,2424.4,2424.2,0.768]
[1750956811756,0.6,2424.4,2424.2,5.468]
[1750956815655,0.6,2424.4,2424.2,4.7]
[1750956816851,0.6,2424.4,2424.3,0.8271]
[1750956817637,0.6,2424.4,2424.3,5.5271]
[1750956818668,16.781,2424.6,2424.3,5.5271]
[1750956819443,0.001,2424.7,2424.4,4.7]
[1750956819668,6.781,2424.7,2424.4,4.7]
[1750956820282,0.001,2424.7,2424.4,4.7]
[1750956820447,0.001,2424.7,2424.4,5.25271]
[1750956821190,0.001,2424.7,2424.4,0.55271]
[1750956821479,0.001,2424.7,2424.5,2.584]
[1750956821650,0.001,2424.7,2424.5,7.284]
[1750956823164,0.001,2424.7,2424.6,5.4689]
[1750956823375,0.001,2424.7,2424.6,6.66091319]
[1750956824148,0.001,2424.7,2424.6,8.43391319]
[1750956824472,0.001,2424.7,2424.6,7.2419]
[1750956825274,0.001,2424.7,2424.6,6.473]
[1750956826974,0.001,2424.7,2424.6,32.6263932]
[1750956827143,0.001,2424.7,2424.6,40.6572812]
[1750956827477,0.001,2424.7,2424.6,32.6263932]
[1750956827676,0.001,2424.7,2424.6,36.63971744]
[1750956828081,0.001,2424.7,2424.6,49.15971744]
[1750956828260,0.001,2425.2,2425.1,4.67354129]
[1750956828449,0.001,2425.2,2425.1,15.84854284]
[1750956828650,0.001,2425.2,2425.1,37.33654284]
[1750956828850,0.001,2425.2,2425.1,38.38657645]
[1750956829044,0.001,2425.2,2425.1,38.69738007]
[1750956830161,0.001,2425.2,2425.1,50.61494107]
[1750956830389,0.001,2425.2,2425.1,54.17698404]
[1750956832307,0.001,2425.2,2425.1,48.83952304]
[1750956832491,0.001,2426.5,2425.5,4.12278274]
[1750956832664,0.001,2426.5,2425.6,14.98247827]
[1750956833175,0.001,2426.5,2425.6,19.10515274]
[1750956833998,0.001,2426.5,2425.7,4.12251487]
[1750956834197,0.001,2426.5,2425.9,0.791]
[1750956834355,0.001,2426.5,2426.0,6.797]
[1750956834559,0.001,2426.5,2426.1,1.773]
[1750956836068,0.001,2426.5,2426.0,4.699]
[1750956836470,0.7684,2426.4,2426.0,4.699]
[1750956838465,0.7684,2426.4,2425.7,1.772]
[1750956838865,0.7684,2426.4,2425.6,1.772]
[1750956839171,0.7714,2426.2,2425.6,1.772]
[1750956839474,1.07714,2426.1,2425.6,1.772]
[1750956840074,0.7714,2426.2,2425.6,1.772]
[1750956840692,0.7714,2426.2,2425.5,4.699]
[1750956840920,0.8098,2425.9,2424.8,4.699]
[1750956841102,0.8098,2425.6,2424.7,0.8249]
[1750956844305,0.8098,2425.6,2424.7,5.5239]
[1750956847605,0.2056,2425.1,2424.7,5.5239]
[1750956847793,0.2056,2425.1,2424.8,4.699]
[1750956847991,0.2056,2425.1,2424.9,0.55239]
[1750956848994,0.2056,2425.1,2425.0,0.7506]
[1750956850380,0.2056,2425.1,2425.0,2.5286]
[1750956853185,0.2056,2425.1,2425.0,7.2276]
[1750956855474,0.2056,2425.4,2425.0,7.2276]
[1750956855670,0.2056,2425.4,2425.1,4.699]
[1750956858588,0.2056,2425.4,2425.0,2.5286]
[1750956861591,0.2056,2425.4,2425.0,6.65226937]
[1750956861909,0.7918,2425.8,2425.0,1.778]
[1750956861910,0.7566,2425.8,2425.0,1.778]
[1750956862110,0.2056,2425.2,2425.0,1.778]
[1750956867523,0.2056,2425.2,2424.8,0.8052]
[1750956867817,0.2056,2425.2,2425.0,1.778]
[1750956869686,0.7566,2425.4,2425.0,1.778]
[1750956869885,0.2056,2425.0,2424.5,1.0343]
[1750956870109,0.2056,2424.9,2424.6,1.778]
[1750956870618,0.2056,2424.9,2424.6,2.73683]
[1750956875837,0.2056,2424.9,2424.7,1.779]
[1750956877628,0.2056,2424.9,2424.6,2.73783]
[1750956877935,0.2056,2424.9,2424.6,1.779]
[1750956878455,0.8198,2425.0,2424.4,1.772]
[1750956878607,0.2056,2424.5,2424.4,1.772]
[1750956880217,0.2056,2424.5,2424.1,9.98837299]
[1750956880431,0.2056,2424.5,2424.2,1.772]
[1750956880618,0.2056,2424.5,2424.2,4.6463973]
[1750956881443,0.7923,2424.7,2424.2,1.772]
[1750956885925,0.75228267,2424.7,2424.2,1.772]
[1750956887620,0.2056,2424.2,2424.1,2.43800678]
[1750956888221,0.2056,2424.2,2424.0,0.002]
[1750956888456,4.12439598,2424.6,2424.0,0.002]
[1750956888643,0.51071726,2424.5,2424.0,0.002]
[1750956888962,0.8328,2424.4,2424.0,0.002]
[1750956896656,0.2056,2424.2,2424.0,0.7838]
[1750956903861,10.98200834,2425.0,2424.1,8.56446621]
[1750956903862,0.824,2424.9,2424.1,8.56446621]
[1750956904063,0.2056,2424.5,2424.0,0.9894]
[1750956904271,0.824,2424.9,2424.0,0.7838]
[1750956904272,0.2056,2424.3,2424.0,0.7838]
[1750956904477,0.2056,2424.3,2424.1,1.773]
[1750956904865,0.8125,2424.5,2424.1,1.773]
[1750956906793,0.2056,2424.1,2424.0,0.002]
[1750956907386,0.2056,2424.1,2424.0,0.002]
[1750956909287,0.9591,2424.1,2424.0,0.002]
[1750956910570,2.05501,2424.1,2424.0,0.002]
[1750956914904,0.2056,2424.1,2424.0,0.002]
[1750956915664,0.2056,2424.1,2424.0,11.10536621]
[1750956916400,0.2056,2424.1,2424.0,15.23077875]
[1750956916576,0.2056,2424.5,2424.2,0.7643]
[1750956916776,0.9852023,2425.0,2424.4,9.32876621]
[1750956916980,0.2056,2424.7,2424.5,2.70387662]
[1750956921193,0.2056,2424.7,2424.6,4.7]
[1750956922785,0.2056,2424.7,2424.6,5.5092]
[1750956923311,0.9852023,2425.4,2424.8,0.7652]
[1750956923476,0.2056,2425.1,2424.8,13.45361087]
[1750956923674,0.2056,2425.1,2424.9,5.46921115]
[1750956923892,0.2056,2425.2,2425.0,6.471]
[1750956924209,0.2056,2425.2,2425.1,0.7652]
[1750956926413,0.2056,2425.2,2425.1,5.4652]
[1750956927315,0.2056,2425.2,2425.1,6.471]
[1750956927728,0.2056,2425.2,2425.1,7.92993611]
[1750956933882,0.2056,2425.2,2425.1,8.72103611]
[1750956937726,0.001,2425.7,2425.1,8.72103611]
[1750956937912,0.2056,2425.5,2425.3,8.56446621]
[1750956938441,0.001,2425.7,2425.3,12.68765064]
[1750956938737,0.001,2425.7,2425.4,11.17970786]
[1750956938920,0.001,2425.7,2425.5,6.77]
[1750956939232,0.001,2425.7,2425.6,1.771]
[1750956939402,0.001,2425.7,2425.6,6.471]
[1750956939796,0.001,2425.7,2425.6,6.469]
[1750956940117,0.2066,2425.7,2425.6,7.40187662]
[1750956945150,1.0262,2425.7,2425.6,4.7]
[1750956946650,0.2066,2425.7,2425.6,4.7]
[1750956947464,1.0153,2425.7,2425.5,4.7]
[1750956947623,0.8097,2425.7,2425.5,4.7]
[1750956949646,0.001,2425.7,2425.5,4.7]
[1750956949814,0.2056,2425.6,2425.5,4.7]
[1750956950023,0.001,2425.7,2425.5,6.468]
[1750956950715,0.001,2425.7,2425.6,4.7]
[1750956955638,0.8005,2425.7,2425.6,4.7]
[1750956958655,0.001,2425.7,2425.6,4.7]
[1750956960949,0.7853,2425.7,2425.6,4.7]
[1750956962938,0.2056,2425.6,2425.3,1.768]
[1750956963141,0.7853,2425.7,2425.3,2.94714023]
[1750956963928,0.2056,2425.5,2425.3,2.94714023]
[1750956967453,0.2056,2425.5,2425.3,1.768]
[1750956967843,0.7874,2425.4,2425.0,10.5096]
[1750956968056,0.7874,2425.4,2424.8,1.768]
[1750956968239,0.2056,2425.0,2424.8,1.768]
[1750956968443,0.2056,2425.0,2424.9,0.25219]
[1750956969227,0.2056,2425.0,2424.8,1.768]
[1750956970734,0.2056,2425.0,2424.5,1.0117]
[1750956970954,1.0094,2425.0,2424.6,1.767]
[1750956971729,0.2056,2425.0,2424.6,1.767]
[1750956974665,0.2056,2425.0,2424.7,1.767]
[1750956975565,0.2056,2425.0,2424.7,2.90131662]
[1750956981778,0.2056,2425.1,2424.8,9.31586621]
[1750956983370,0.2056,2425.0,2424.8,8.56446621]
[1750956984092,1.0294,2425.0,2424.7,1.767]
[1750956984258,1.0294,2425.0,2424.8,1.767]
[1750956985349,0.2056,2425.0,2424.8,1.767]
[1750956986390,0.2056,2425.0,2424.8,11.08746621]
[1750956986561,0.2056,2425.0,2424.9,1.10874662]
[1750956987358,0.2056,2425.0,2424.8,11.08746621]
[1750956987564,0.2056,2425.0,2424.8,10.33146621]
[1750956991294,0.2056,2425.0,2424.9,0.8034]
[1750956991497,0.2056,2425.0,2424.8,1.767]
[1750956991662,0.2056,2425.0,2424.8,8.533]
[1750956991868,0.2056,2425.0,2424.9,1.767]
[1750956992690,0.2056,2425.0,2424.7,8.56446621]
[1750956992999,0.7602,2424.9,2424.8,1.767]
[1750956994673,0.7569,2425.3,2424.8,1.767]
[1750956995404,0.2056,2424.8,2424.7,1.767]
[1750956995695,0.2056,2424.8,2424.7,3.47664662]
[1750957002383,0.2056,2424.8,2424.7,1.767]
[1750957006308,0.2056,2424.8,2424.7,2.5442]
[1750957006875,0.2056,2424.8,2424.7,1.767]
[1750957008196,0.2056,2424.8,2424.7,1.766]
[1750957011898,0.2056,2424.8,2424.4,8.56446621]
[1750957012100,0.2056,2424.7,2424.5,1.766]
[1750957013284,0.2056,2424.7,2424.4,9.93559891]
[1750957013516,0.2056,2424.7,2424.6,1.766]
[1750957019111,0.2056,2424.7,2424.4,16.69959891]
[1750957019112,0.2056,2424.7,2424.4,9.93559891]
[1750957019416,0.2056,2424.6,2424.5,1.766]
[1750957024738,0.9895,2424.6,2424.5,4.7]
[1750957030224,0.2056,2424.6,2424.5,4.7]
[1750957032339,0.2056,2424.6,2424.5,6.10762662]
[1750957032542,0.2056,2424.9,2424.6,4.7]
[1750957032712,0.2056,2424.9,2424.7,10.32846621]
[1750957033839,0.98547532,2425.6,2425.3,0.8189]
[1750957033997,0.001,2425.7,2425.5,8.56446621]
[1750957035699,0.001,2425.7,2425.6,1.764]
[1750957036225,0.001,2425.7,2425.5,8.56446621]
[1750957036528,0.001,2425.7,2425.6,1.764]
[1750957037995,0.001,2425.7,2425.4,4.7]
[1750957038311,0.7557,2425.7,2425.4,6.464]
[1750957038707,0.7557,2425.7,2425.4,4.7]
[1750957039634,0.7557,2425.7,2425.5,4.7]
[1750957039911,0.7557,2425.7,2425.6,4.7]
[1750957044231,1.50737,2425.7,2425.6,4.7]
[1750957048413,1.50737,2425.7,2424.9,8.6016]
[1750957048414,0.2056,2425.6,2425.0,4.7]
[1750957048614,0.7557,2425.7,2425.0,4.7]
[1750957049039,0.22219955,2425.7,2425.0,4.7]
[1750957051340,14.1233542,2425.8,2425.0,4.7]
[1750957051341,10.001,2425.8,2425.0,4.7]
[1750957051518,10.0,2425.2,2425.0,4.7]
[1750957051716,10.0,2425.2,2424.3,7.82]
[1750957051717,0.2056,2425.0,2424.3,4.7]
[1750957052022,0.7843,2424.9,2424.4,4.7]
[1750957055943,0.814,2424.8,2424.5,4.7]
[1750957056722,10.0,2424.8,2424.1,4.7]
[1750957057045,0.814,2424.4,2424.2,4.7]
[1750957059946,0.77390546,2424.4,2424.2,4.7]
[1750957066352,0.77390546,2424.4,2424.3,4.7]
[1750957067865,2.06853803,2424.4,2424.3,4.7]
[1750957069562,2.06853803,2424.4,2424.1,4.7]
[1750957069563,10.2056,2424.3,2424.1,4.7]
[1750957069723,17.5551,2424.2,2424.1,4.7]
[1750957071249,18.1551,2424.2,2424.1,4.7]
[1750957071755,20.10007326,2424.2,2424.1,4.7]
[1750957074936,10.0,2424.1,2424.0,0.002]
[1750957075456,10.10007326,2424.2,2424.0,0.002]
[1750957075635,10.0,2424.1,2424.0,0.002]
[1750957079478,16.761,2424.1,2424.0,0.002]
[1750957080864,16.761,2424.1,2424.0,4.702]
[1750957081776,6.761,2424.1,2424.0,4.702]
[1750957084647,16.761,2424.1,2424.0,4.702]
[1750957087684,10.0,2424.1,2424.0,4.702]
[1750957088051,16.76,2424.1,2424.0,4.702]
[1750957088760,0.6,2424.2,2424.0,5.25139]
[1750957088955,7.36,2424.2,2424.1,0.7863]
[1750957089279,6.76,2424.2,2424.1,0.7863]
[1750957090879,7.36,2424.2,2424.1,0.7863]
[1750957092872,7.36,2424.2,2424.1,5.4863]
[1750957093046,7.36,2424.2,2424.1,6.090069]
[1750957093793,0.6,2424.2,2424.1,6.090069]
[1750957096981,0.8056,2424.2,2424.1,6.090069]
[1750957097562,0.2056,2424.2,2424.1,6.090069]
[1750957098352,0.98593899,2424.6,2424.3,0.8125]
[1750957098549,7.74393899,2424.9,2424.4,0.53069]
[1750957098777,10.0,2424.8,2424.5,4.4944]
[1750957098984,10.98593899,2424.8,2424.5,4.4944]
[1750957102000,0.98593899,2424.8,2424.5,4.4944]
[1750957102294,6.757,2424.8,2424.6,4.4944]
[1750957102506,0.98593899,2425.0,2424.7,4.4944]
[1750957102672,10.0,2424.9,2424.7,5.2583]
[1750957103370,1.81528999,2425.3,2424.7,5.2583]
[1750957103704,10.0,2424.9,2424.7,5.2583]
[1750957105170,6.757,2425.0,2424.7,5.2583]
[1750957105367,10.0,2424.9,2424.7,5.2583]
[1750957107082,10.0,2424.9,2424.7,5.2583]
[1750957107599,0.8303,2425.3,2424.8,4.4944]
[1750957107802,0.001,2425.4,2425.0,0.8054]
[1750957107979,6.756,2425.3,2425.1,4.4944]
[1750957108179,10.0,2425.2,2425.1,4.4944]
[1750957108395,0.2056,2425.1,2425.0,0.8054]
[1750957109385,0.2056,2425.1,2424.9,4.4944]
[1750957109572,0.001,2425.4,2424.9,4.4944]
[1750957109573,0.2056,2425.0,2424.9,4.4944]
[1750957113694,0.2056,2425.0,2424.9,14.34934621]
[1750957113891,0.2056,2425.2,2424.9,14.34934621]
[1750957115575,0.2056,2425.2,2424.9,5.78488]
[1750957119497,0.2056,2425.2,2425.0,4.4944]
[1750957123090,0.001,2425.4,2425.0,4.4944]
[1750957123289,14.87751453,2425.2,2425.1,4.4944]
[1750957123493,10.754,2425.2,2425.1,4.4944]
[1750957125187,11.73766542,2425.2,2425.1,4.4944]
[1750957127105,18.48966542,2425.2,2425.1,4.4944]
[1750957127327,18.49023978,2425.2,2425.1,4.4944]
[1750957127494,20.82677316,2425.2,2425.1,4.4944]
[1750957128198,10.2056,2425.1,2424.5,4.4944]
[1750957128403,10.0,2425.1,2424.6,4.4944]
[1750957129809,9.84253338,2425.2,2424.6,4.4944]
[1750957130012,0.98425334,2425.1,2424.6,4.4944]
[1750957130425,10.98425334,2425.1,2424.6,4.4944]
[1750957130620,11.96900314,2425.1,2424.6,4.4944]
[1750957130824,10.7775,2425.0,2424.6,4.4944]
[1750957131128,0.7775,2425.0,2424.6,4.4944]
[1750957132028,2.11333266,2425.0,2424.6,4.4944]
[1750957133133,2.11333266,2425.0,2424.6,5.2644]
[1750957133298,0.98528859,2425.0,2424.6,5.2644]
[1750957133495,11.96954193,2425.1,2424.6,5.2644]
[1750957134220,11.96954193,2425.1,2424.7,4.4944]
[1750957135639,0.98528859,2425.1,2424.8,0.77]
[1750957135837,10.0,2425.3,2424.8,0.77]
[1750957136141,10.98509903,2425.3,2424.8,0.77]
[1750957137328,0.2056,2425.0,2424.9,5.3252]
[1750957137930,0.2056,2425.0,2424.9,6.88996662]
[1750957140414,0.001,2425.4,2424.9,6.88996662]
[1750957140611,0.2056,2425.2,2424.9,6.88996662]
[1750957141054,0.2056,2425.2,2425.0,13.87176621]
[1750957141256,0.001,2425.4,2425.1,4.7]
[1750957141417,0.001,2425.4,2425.3,9.37736621]
[1750957141922,0.001,2425.4,2425.3,0.8129]
[1750957143049,0.001,2425.4,2425.3,5.3073]
[1750957151727,0.001,2425.4,2425.3,13.87176621]
[1750957153262,0.001,2425.4,2425.3,4.4944]
[1750957154664,0.001,2425.4,2425.3,5.98388]
[1750957160864,0.2056,2425.6,2425.4,4.4934]
[1750957163244,0.001,2425.8,2425.5,9.31786621]